bitfinex-derivatives/quotes_BTCF0:USTF0_20250719
["timestamp","ask_amount","ask_price","bid_price","bid_amount"]
[1752914602542,1.46123439,118180.0,118170.0,0.5486947]
[1752914602742,1.44112219,118180.0,118170.0,0.5486947]
[1752914603739,1.08032219,118180.0,118170.0,0.5486947]
[1752914603940,1.44112219,118180.0,118170.0,0.5486947]
[1752914604141,1.33469175,118180.0,118170.0,0.5486947]
[1752914605041,0.97389175,118180.0,118170.0,0.5486947]
[1752914605335,1.33469175,118180.0,118170.0,0.5486947]
[1752914606031,1.57983505,118180.0,118170.0,0.53480623]
[1752914606241,1.41070765,118180.0,118170.0,0.53480623]
[1752914607744,1.41070765,118180.0,118170.0,0.59911623]
[1752914607940,1.04990765,118180.0,118170.0,0.59911623]
[1752914608141,0.90089245,118180.0,118170.0,0.59911623]
[1752914612653,0.31537245,118180.0,118170.0,0.74813143]
[1752914612944,0.03989857,118180.0,118170.0,1.40413143]
[1752914613245,0.71446202,118190.0,118180.0,0.3760274]
[1752914613440,0.71446202,118190.0,118180.0,1.0348578]
[1752914613834,0.76410202,118190.0,118180.0,1.0348578]
[1752914614143,0.80531202,118190.0,118180.0,1.0348578]
[1752914614444,0.80631202,118190.0,118180.0,1.0348578]
[1752914614744,0.80831202,118190.0,118180.0,1.0348578]
[1752914616946,0.81799202,118190.0,118180.0,0.7368274]
[1752914617244,0.81799202,118190.0,118180.0,1.0348578]
[1752914620048,0.81799202,118190.0,118180.0,0.7368274]
[1752914620247,0.81799202,118190.0,118180.0,1.0348578]
[1752914627157,0.87869696,118190.0,118180.0,1.0348578]
[1752914627965,0.87829696,118190.0,118180.0,1.0348578]
[1752914628861,0.87829696,118190.0,118180.0,0.6740578]
[1752914629056,0.87829696,118190.0,118180.0,1.0348578]
[1752914633963,0.81759202,118190.0,118180.0,1.0348578]
[1752914634164,0.89360792,118190.0,118180.0,1.0348578]
[1752914636064,0.89360792,118190.0,118180.0,0.6740578]
[1752914636264,0.89360792,118190.0,118180.0,1.0348578]
[1752914639866,0.89360792,118190.0,118180.0,0.6740578]
[1752914640068,0.89360792,118190.0,118180.0,1.0348578]
[1752914640764,0.89360792,118190.0,118180.0,0.8858426]
[1752914640970,0.89360792,118190.0,118180.0,1.0348578]
[1752914641371,0.89360792,118190.0,118180.0,0.7368274]
[1752914641568,0.89360792,118190.0,118180.0,1.0348578]
[1752914643969,0.95443994,118190.0,118180.0,1.0348578]
[1752914644163,0.87842404,118190.0,118180.0,1.0348578]
[1752914660389,0.87842404,118190.0,118180.0,0.7368274]
[1752914660591,0.87842404,118190.0,118180.0,1.0348578]
[1752914662682,0.87842404,118190.0,118180.0,0.7368274]
[1752914662989,0.87842404,118190.0,118180.0,1.0348578]
[1752914664393,0.87842404,118190.0,118180.0,0.7368274]
[1752914664691,0.87842404,118190.0,118180.0,1.0348578]
[1752914664891,0.87842404,118190.0,118180.0,0.7368274]
[1752914665086,0.87842404,118190.0,118180.0,1.0348578]
[1752914666688,0.81759202,118190.0,118180.0,1.0348578]
[1752914667394,0.81759202,118190.0,118180.0,0.6740578]
[1752914667592,0.81759202,118190.0,118180.0,1.0348578]
[1752914668696,0.81759202,118190.0,118180.0,0.6740578]
[1752914668896,0.81759202,118190.0,118180.0,1.0348578]
[1752914669098,0.81759202,118190.0,118180.0,0.6740578]
[1752914669285,0.81759202,118190.0,118180.0,1.0348578]
[1752914671692,0.81759202,118190.0,118180.0,0.6740578]
[1752914671898,0.81759202,118190.0,118180.0,1.0348578]
[1752914674198,0.87842404,118190.0,118180.0,1.0348578]
[1752914682501,0.29370404,118190.0,118180.0,1.0348578]
[1752914682798,0.002,118190.0,118180.0,1.183873]
[1752914683003,0.61830538,118200.0,118190.0,0.3730932]
[1752914683208,0.7581159,118210.0,118200.0,0.3730789]
[1752914683402,0.6821,118210.0,118200.0,0.6711093]
[1752914684207,0.6821,118210.0,118200.0,1.0319093]
[1752914684505,0.6861,118210.0,118200.0,1.04874451]
[1752914684708,0.73267,118210.0,118200.0,1.04874451]
[1752914684907,0.79236,118210.0,118200.0,1.04874451]
[1752914685607,0.79236,118210.0,118200.0,1.19775971]
[1752914685809,0.79236,118210.0,118200.0,1.04874451]
[1752914686311,0.89879044,118210.0,118200.0,1.04874451]
[1752914686808,0.79236,118210.0,118200.0,1.04874451]
[1752914687206,0.79236,118210.0,118200.0,1.05742295]
[1752914687410,0.86833668,118210.0,118200.0,1.05742295]
[1752914688900,0.28485668,118210.0,118200.0,1.05742295]
[1752914689208,0.79224,118210.0,118200.0,1.05742295]
[1752914689605,0.79524,118210.0,118200.0,1.05742295]
[1752914691113,0.79524,118210.0,118200.0,1.20643815]
[1752914691812,0.79524,118210.0,118200.0,1.05742295]
[1752914692412,0.79524,118210.0,118200.0,1.20643815]
[1752914692711,0.79524,118210.0,118200.0,1.05742295]
[1752914693104,0.85597598,118210.0,118200.0,1.05742295]
[1752914693310,0.79524,118210.0,118200.0,1.05742295]
[1752914694112,0.79524,118210.0,118200.0,1.20643815]
[1752914695512,0.85597598,118210.0,118200.0,1.20643815]
[1752914701216,0.79524,118210.0,118200.0,1.20643815]
[1752914703818,0.21188,118210.0,118200.0,1.20643815]
[1752914704019,0.79496,118210.0,118200.0,1.20643815]
[1752914705222,0.79496,118210.0,118200.0,1.05742295]
[1752914705922,0.79496,118210.0,118200.0,1.20643815]
[1752914706121,0.79496,118210.0,118200.0,1.05742295]
[1752914708131,0.85569598,118210.0,118200.0,1.05742295]
[1752914708628,0.85569598,118210.0,118200.0,1.12388995]
[1752914709730,0.85569598,118210.0,118200.0,1.05742295]
[1752914710027,0.79496,118210.0,118200.0,1.05742295]
[1752914711732,0.85569598,118210.0,118200.0,1.05742295]
[1752914714435,0.85569598,118210.0,118200.0,0.75939255]
[1752914714635,0.85569598,118210.0,118200.0,1.05742295]
[1752914718241,0.85569598,118210.0,118200.0,1.12633422]
[1752914722645,0.85529598,118210.0,118200.0,1.12633422]
[1752914723944,0.85529598,118210.0,118200.0,0.82830382]
[1752914723945,0.79456,118210.0,118200.0,0.82830382]
[1752914724150,0.87053668,118210.0,118200.0,1.12633422]
[1752914725248,0.87053668,118210.0,118200.0,0.82830382]
[1752914725548,0.87053668,118210.0,118200.0,1.12633422]
[1752914725949,0.87053668,118210.0,118200.0,0.82830382]
[1752914726144,0.87053668,118210.0,118200.0,1.12633422]
[1752914729753,0.9435752,118210.0,118200.0,1.03849295]
[1752914729954,1.00439718,118210.0,118200.0,0.46969775]
[1752914730253,1.00439718,118210.0,118200.0,0.53265775]
[1752914730753,1.00439718,118210.0,118200.0,0.55066775]
[1752914733358,1.00439718,118210.0,118200.0,0.69968295]
[1752914733955,0.9435752,118210.0,118200.0,0.69968295]
[1752914736561,0.9435752,118210.0,118200.0,0.55066775]
[1752914742170,0.9435752,118210.0,118200.0,0.40165255]
[1752914742467,0.9435752,118210.0,118200.0,0.55066775]
[1752914743461,0.9435752,118210.0,118200.0,0.40165255]
[1752914743766,1.4734597,118210.0,118200.0,0.19461255]
[1752914744067,1.68329688,118210.0,118200.0,0.18593411]
[1752914744767,1.53428168,118210.0,118200.0,0.18593411]
[1752914753671,1.7070223,118210.0,118200.0,0.1690987]
[1752914753872,1.81011838,118210.0,118200.0,0.1690987]
[1752914754067,1.81011838,118210.0,118190.0,0.25377906]
[1752914754068,0.3718887,118200.0,118190.0,0.25377906]
[1752914754269,1.09154108,118200.0,118190.0,0.21150306]
[1752914754766,1.09154108,118200.0,118190.0,0.00012706]
[1752914754973,0.39113036,118190.0,118180.0,0.253676]
[1752914755273,1.69282887,118190.0,118180.0,0.253676]
[1752914755666,1.69282887,118190.0,118180.0,0.2113944]
[1752914755863,1.81966927,118190.0,118170.0,0.14555078]
[1752914756069,1.0307477,118180.0,118170.0,0.27239698]
[1752914756671,1.09149581,118180.0,118170.0,0.27239698]
[1752914757174,1.0307477,118180.0,118170.0,0.27239698]
[1752914757475,1.09149581,118180.0,118170.0,0.27239698]
[1752914758973,0.94248061,118180.0,118170.0,0.27239698]
[1752914759173,0.8817325,118180.0,118170.0,0.27239698]
[1752914759674,0.8817325,118180.0,118170.0,0.42141218]
[1752914760175,0.8817325,118180.0,118170.0,0.27239698]
[1752914760376,0.8817325,118180.0,118170.0,0.42141218]
[1752914760576,0.8817325,118180.0,118170.0,0.27239698]
[1752914760974,0.93130581,118180.0,118170.0,0.27239698]
[1752914761978,0.56359,118180.0,118170.0,0.27239698]
[1752914762176,0.93130441,118180.0,118170.0,0.27239698]
[1752914763082,0.76217851,118180.0,118170.0,0.27239698]
[1752914763771,0.93130461,118180.0,118170.0,0.27239698]
[1752914763971,0.76217851,118180.0,118170.0,0.27239698]
[1752914764772,0.56359,118180.0,118170.0,0.31552698]
[1752914765078,0.20279,118180.0,118170.0,0.66871549]
[1752914765282,0.52213736,118190.0,118180.0,0.2490968]
[1752914765479,0.52213736,118190.0,118180.0,0.3665268]
[1752914765480,1.11614736,118190.0,118180.0,0.3665268]
[1752914765780,1.11614736,118190.0,118180.0,0.56511531]
[1752914765981,1.16023736,118190.0,118180.0,0.56511531]
[1752914766382,1.16123736,118190.0,118180.0,0.56511531]
[1752914766571,1.16223736,118190.0,118180.0,0.56511531]
[1752914766870,0.80143736,118190.0,118180.0,0.56511531]
[1752914767069,0.80143736,118190.0,118180.0,0.92591531]
[1752914769882,0.80143736,118190.0,118180.0,0.7273268]
[1752914770185,0.80143736,118190.0,118180.0,0.92591531]
[1752914774382,0.87741404,118190.0,118180.0,0.92591531]
[1752914775888,0.87733404,118190.0,118180.0,0.92591531]
[1752914780797,0.87733404,118190.0,118180.0,0.7273268]
[1752914781998,0.87733404,118190.0,118180.0,0.92591531]
[1752914782700,0.87729404,118190.0,118180.0,0.92591531]
[1752914782999,1.02619097,118190.0,118180.0,0.87622373]
[1752914783602,1.02619097,118190.0,118180.0,1.02512066]
[1752914784998,0.95021429,118190.0,118180.0,1.02512066]
[1752914785203,0.95021429,118190.0,118180.0,0.7273268]
[1752914785404,0.95021429,118190.0,118180.0,1.02512066]
[1752914785604,0.80131736,118190.0,118180.0,1.02512066]
[1752914785804,0.95021429,118190.0,118180.0,1.02512066]
[1752914786903,0.80131736,118190.0,118180.0,1.02512066]
[1752914787104,0.95021429,118190.0,118180.0,1.02512066]
[1752914787303,0.78209,118190.0,118180.0,1.02512066]
[1752914787505,0.88685693,118190.0,118180.0,1.02512066]
[1752914787705,0.156,118190.0,118180.0,1.02512066]
[1752914787910,0.73796,118190.0,118180.0,1.02512066]
[1752914788208,0.79868622,118190.0,118180.0,1.02512066]
[1752914791001,0.002,118190.0,118180.0,1.02512066]
[1752914791207,0.58392,118190.0,118180.0,1.02512066]
[1752914792104,0.64285,118190.0,118180.0,1.02512066]
[1752914792909,0.64285,118190.0,118180.0,0.92580825]
[1752914793309,0.58392,118190.0,118180.0,0.92580825]
[1752914793510,0.5530047,118190.0,118180.0,0.92580825]
[1752914794608,0.5530047,118190.0,118180.0,1.22100825]
[1752914798210,0.7353,118200.0,118190.0,0.2455925]
[1752914798406,0.7353,118200.0,118190.0,0.56602395]
[1752914798606,0.79602622,118200.0,118190.0,0.56602395]
[1752914799312,0.7353,118200.0,118190.0,0.92682395]
[1752914799811,0.7373,118200.0,118190.0,0.92682395]
[1752914800406,0.7393,118200.0,118190.0,0.92682395]
[1752914800612,0.78526,118200.0,118190.0,0.92682395]
[1752914802513,0.7393,118200.0,118190.0,0.92682395]
[1752914802913,0.01265,118200.0,118190.0,0.92682395]
[1752914803115,0.004,118200.0,118190.0,0.92682395]
[1752914803414,1e-07,118200.0,118190.0,1.50862395]
[1752914804208,0.06072632,118200.0,118190.0,1.50862395]
[1752914812317,0.06072632,118200.0,118190.0,1.80382395]
[1752914814314,1e-07,118200.0,118190.0,1.80382395]
[1752914814518,1e-07,118200.0,118190.0,1.68187395]
[1752914815009,1e-07,118200.0,118190.0,1.63221971]
[1752914815214,1e-07,118200.0,118190.0,1.78104692]
[1752914831234,1e-07,118200.0,118190.0,1.4833925]
[1752914831734,1e-07,118200.0,118190.0,1.78104692]
[1752914840831,1e-07,118200.0,118190.0,2.14184692]
[1752914843938,1e-07,118200.0,118190.0,2.22184692]
[1752914844439,0.06072632,118200.0,118190.0,2.32483692]
[1752914844638,0.06072632,118200.0,118190.0,2.34265692]
[1752914846341,0.06072632,118200.0,118190.0,1.62105692]
[1752914846541,0.06072632,118200.0,118190.0,2.34265692]
[1752914846845,0.06072632,118200.0,118190.0,2.40990313]
[1752914847138,0.10951462,118210.0,118200.0,0.2084882]
[1752914847347,0.85020777,118220.0,118210.0,0.2455639]
[1752914847544,0.7743,118220.0,118210.0,0.66402832]
[1752914848041,0.73189,118220.0,118210.0,0.66402832]
[1752914848346,0.15021,118220.0,118210.0,0.66402832]
[1752914848545,0.15221,118220.0,118210.0,0.66402832]
[1752914848844,0.25848089,118220.0,118210.0,0.66402832]
[1752914849041,0.25848089,118220.0,118210.0,1.02482832]
[1752914849345,0.22822946,118220.0,118210.0,1.02482832]
[1752914851848,0.80986946,118220.0,118210.0,1.02482832]
[1752914853455,0.22822946,118220.0,118210.0,1.02482832]
[1752914853655,0.80986946,118220.0,118210.0,1.02482832]
[1752914853954,0.73385,118220.0,118210.0,1.02482832]
[1752914855951,0.15221,118220.0,118210.0,1.02482832]
[1752914856152,0.73385,118220.0,118210.0,1.02482832]
[1752914858452,0.15221,118220.0,118210.0,1.02482832]
[1752914858652,0.73385,118220.0,118210.0,1.02482832]
[1752914858950,0.79462066,118220.0,118210.0,0.87600111]
[1752914859254,0.83754066,118220.0,118210.0,0.87600111]
[1752914859649,0.83770066,118220.0,118210.0,0.87600111]
[1752914860953,0.83758066,118220.0,118210.0,0.87600111]
[1752914863253,0.25590066,118220.0,118210.0,0.7271739]
[1752914863454,0.83754066,118220.0,118210.0,0.87600111]
[1752914867458,0.98636787,118220.0,118210.0,0.51520111]
[1752914867756,1.51635747,118220.0,118210.0,0.43788111]
[1752914867953,1.66518468,118220.0,118210.0,0.38975111]
[1752914868162,1.60441402,118220.0,118210.0,0.1690839]
[1752914868554,1.60441402,118220.0,118210.0,0.31791111]
[1752914869259,1.45558681,118220.0,118210.0,0.31791111]
[1752914869457,1.45558681,118220.0,118210.0,0.36142111]
[1752914870360,1.3067596,118220.0,118210.0,0.36142111]
[1752914870556,1.45558681,118220.0,118210.0,0.36142111]
[1752914872462,1.13769,118220.0,118210.0,0.36142111]
[1752914872961,1.45558681,118220.0,118210.0,0.36142111]
[1752914873963,1.28651721,118220.0,118210.0,0.36142111]
[1752914874165,0.92587721,118220.0,118210.0,0.36142111]
[1752914874366,0.70475721,118220.0,118210.0,0.36142111]
[1752914874663,1.28667721,118220.0,118210.0,0.36142111]
[1752914874864,1.28667721,118220.0,118210.0,0.38857111]
[1752914875265,0.92583721,118220.0,118210.0,0.44763111]
[1752914875461,0.92583721,118220.0,118210.0,0.48486111]
[1752914875767,0.77701,118220.0,118210.0,0.48486111]
[1752914875976,1.28663721,118220.0,118210.0,0.48486111]
[1752914876464,0.92583721,118220.0,118210.0,0.48486111]
[1752914877067,1.45570681,118220.0,118210.0,0.3360339]
[1752914877266,1.45570681,118220.0,118210.0,0.48486111]
[1752914877267,1.28663721,118220.0,118210.0,0.48486111]
[1752914877872,1.28663721,118220.0,118210.0,0.3360339]
[1752914878173,1.19858066,118220.0,118210.0,0.48486111]
[1752914878372,1.34740787,118220.0,118210.0,0.48486111]
[1752914880175,1.34740787,118220.0,118210.0,0.3360339]
[1752914880374,0.98660787,118220.0,118210.0,0.49341111]
[1752914880574,0.98660787,118220.0,118210.0,0.51073111]
[1752914880872,1.34740787,118220.0,118210.0,0.51073111]
[1752914881074,0.98660787,118220.0,118210.0,0.51073111]
[1752914881972,0.98660787,118220.0,118210.0,0.3619039]
[1752914882172,0.98660787,118220.0,118210.0,0.51073111]
[1752914882370,1.34740787,118220.0,118210.0,0.51073111]
[1752914882867,0.98660787,118220.0,118210.0,0.3619039]
[1752914883073,0.98660787,118220.0,118210.0,0.51073111]
[1752914886075,0.83778066,118220.0,118210.0,0.51073111]
[1752914886279,0.98660787,118220.0,118210.0,0.51073111]
[1752914886471,0.83778066,118220.0,118210.0,0.51073111]
[1752914886665,0.98660787,118220.0,118210.0,0.51073111]
[1752914888180,0.83778066,118220.0,118210.0,0.51073111]
[1752914888678,0.83778066,118220.0,118210.0,0.3619039]
[1752914888879,0.83778066,118220.0,118210.0,0.51073111]
[1752914889079,0.98660787,118220.0,118210.0,0.51073111]
[1752914891779,0.83778066,118220.0,118210.0,0.51073111]
[1752914891978,0.98660787,118220.0,118210.0,0.51073111]
[1752914892179,0.83778066,118220.0,118210.0,0.51073111]
[1752914892376,0.98660787,118220.0,118210.0,0.51073111]
[1752914893179,0.83778066,118220.0,118210.0,0.51073111]
[1752914894374,0.77701,118220.0,118210.0,0.51073111]
[1752914897681,0.77701,118220.0,118210.0,0.65955832]
[1752914897881,0.85303141,118220.0,118210.0,1.02035832]
[1752914898380,0.77701,118220.0,118210.0,1.02035832]
[1752914900277,0.85303101,118220.0,118210.0,1.02035832]
[1752914900579,0.77701,118220.0,118210.0,1.02035832]
[1752914901287,0.85303112,118220.0,118210.0,1.02035832]
[1752914901481,0.77701,118220.0,118210.0,1.02035832]
[1752914903183,0.77701,118220.0,118210.0,0.87153111]
[1752914904383,0.83782832,118220.0,118210.0,0.87153111]
[1752914904878,0.79490832,118220.0,118210.0,1.02035832]
[1752914907374,0.83906832,118220.0,118210.0,1.02035832]
[1752914909376,0.77825,118220.0,118210.0,1.02035832]
[1752914910286,0.77825,118220.0,118210.0,0.7227039]
[1752914910486,0.77825,118220.0,118210.0,0.87153111]
[1752914910787,0.77825,118220.0,118210.0,0.7227039]
[1752914911085,0.77825,118220.0,118210.0,0.51073111]
[1752914912287,0.83907151,118220.0,118210.0,0.51073111]
[1752914916086,0.83907151,118220.0,118210.0,0.3619039]
[1752914916389,0.83907151,118220.0,118210.0,0.51073111]
[1752914918896,0.77825,118220.0,118210.0,0.51073111]
[1752914920594,0.77825,118220.0,118210.0,0.3619039]
[1752914920795,0.77825,118220.0,118210.0,0.51073111]
[1752914922295,0.73409,118220.0,118210.0,1.02035832]
[1752914922491,0.0103,118220.0,118210.0,1.02035832]
[1752914922697,0.06282323,118220.0,118210.0,1.31555832]
[1752914923397,0.06282323,118220.0,118210.0,1.83690788]
[1752914923899,0.06282323,118220.0,118210.0,1.54925346]
[1752914924093,0.06282323,118220.0,118210.0,1.84690788]
[1752914926802,0.06082323,118220.0,118210.0,1.84690788]
[1752914926991,0.06082323,118220.0,118210.0,1.84790788]
[1752914927902,0.06082323,118220.0,118210.0,1.84890788]
[1752914929807,0.82353323,118230.0,118220.0,0.3522798]
[1752914930105,0.82353323,118230.0,118220.0,1.02775872]
[1752914933309,0.76271,118230.0,118220.0,1.02775872]
[1752914933511,0.82353323,118230.0,118220.0,0.7301043]
[1752914933809,0.82353323,118230.0,118220.0,1.02775872]
[1752914934110,0.82353323,118230.0,118220.0,1.03608806]
[1752914934409,0.76271,118230.0,118220.0,1.03608806]
[1752914934609,0.82353323,118230.0,118220.0,1.03608806]
[1752914934908,0.78238323,118230.0,118220.0,1.03608806]
[1752914935807,0.78238323,118230.0,118220.0,0.73843364]
[1752914936007,0.78238323,118230.0,118220.0,1.03608806]
[1752914936606,0.19942323,118230.0,118220.0,1.03608806]
[1752914940215,0.1386,118230.0,118220.0,1.03608806]
[1752914941216,0.19942323,118230.0,118220.0,1.03608806]
[1752914941411,0.1386,118230.0,118220.0,1.03608806]
[1752914944517,0.2146229,118230.0,118220.0,1.03608806]
[1752914945516,0.1386,118230.0,118220.0,1.03608806]
[1752914953523,0.2146229,118230.0,118220.0,1.03608806]
[1752914954523,0.17312737,118230.0,118220.0,1.022207]
[1752914961820,0.06857737,118230.0,118220.0,1.022207]
[1752914964935,0.06857737,118230.0,118220.0,0.661407]
[1752914965129,0.06857737,118230.0,118220.0,1.022207]
[1752914966632,0.0708,118240.0,118230.0,0.1690555]
[1752914966935,0.6526,118240.0,118230.0,1.00901992]
[1752914967134,0.63543,118240.0,118230.0,1.00901992]
[1752914967335,0.23759163,118250.0,118240.0,0.3334612]
[1752914967530,0.23759163,118250.0,118240.0,0.64820562]
[1752914967835,0.16156873,118250.0,118240.0,0.64820562]
[1752914969337,0.16356873,118250.0,118240.0,0.64820562]
[1752914970728,0.06397,118250.0,118240.0,1.15783283]
[1752914971029,0.002,118250.0,118240.0,0.88984787]
[1752914971238,0.002,118250.0,118240.0,1.3363295]
[1752914974437,0.002,118250.0,118240.0,1.9204495]
[1752914975034,0.002,118250.0,118240.0,2.2156495]
[1752914982041,0.002,118250.0,118240.0,1.8548495]
[1752914982243,0.002,118250.0,118240.0,2.2156495]
[1752914984141,0.002,118250.0,118240.0,2.06682229]
[1752914984444,0.0780229,118250.0,118240.0,2.06682229]
[1752914985044,0.0780229,118250.0,118240.0,1.70602229]
[1752914985243,0.0780229,118250.0,118240.0,2.06682229]
[1752914985545,0.2209829,118250.0,118240.0,2.06682229]
[1752914986041,0.2209829,118250.0,118240.0,1.70602229]
[1752914986244,0.2209829,118250.0,118240.0,2.06598229]
[1752914986942,0.2209829,118250.0,118240.0,1.77078229]
[1752914991948,0.1945229,118250.0,118240.0,1.77078229]
[1752914992547,0.0858929,118250.0,118240.0,1.77078229]
[1752914993047,0.0780229,118250.0,118240.0,1.9196095]
[1752914993449,0.0780229,118250.0,118240.0,1.77078229]
[1752914994548,0.002,118250.0,118240.0,1.77078229]
[1752914994850,0.002,118250.0,118240.0,1.77030229]
[1752914995850,0.002,118250.0,118240.0,1.9191295]
[1752914998651,0.002,118250.0,118240.0,1.77030229]
[1752914998956,0.002,118250.0,118240.0,1.9191295]
[1752914999456,0.002,118250.0,118240.0,1.5583295]
[1752914999656,0.002,118250.0,118240.0,1.9191295]
[1752915004657,0.002,118250.0,118240.0,1.77030229]
[1752915004857,0.002,118250.0,118240.0,1.47264787]
[1752915005056,0.002,118250.0,118240.0,1.77030229]
[1752915005257,0.002,118250.0,118240.0,1.47264787]
[1752915005458,0.002,118250.0,118240.0,1.77030229]
[1752915012473,0.74584722,118250.0,118240.0,0.22758]
[1752915012762,0.36524679,118230.0,118220.0,0.1690622]
[1752915012954,0.3483298,118220.0,118210.0,0.1690841]
[1752915013159,1.26050652,118220.0,118210.0,0.1690841]
[1752915013557,1.33652942,118220.0,118210.0,0.1690841]
[1752915014565,1.26050652,118220.0,118210.0,0.1700841]
[1752915014864,1.32841282,118220.0,118210.0,0.1700841]
[1752915015066,1.22923589,118220.0,118210.0,0.1700841]
[1752915015263,1.28972838,118220.0,118210.0,0.1700841]
[1752915015462,1.28972838,118220.0,118210.0,0.2084341]
[1752915015659,1.28972838,118220.0,118210.0,0.2094341]
[1752915016160,1.28972838,118220.0,118210.0,0.2084341]
[1752915016365,1.29172838,118220.0,118210.0,0.2084341]
[1752915016564,1.09325089,118220.0,118210.0,0.2084341]
[1752915016765,1.29172838,118220.0,118210.0,0.2354441]
[1752915016966,1.29172838,118220.0,118210.0,0.2344441]
[1752915018865,0.2113904,118200.0,118190.0,0.0806273]
[1752915019065,0.1691271,118180.0,118170.0,0.2920534]
[1752915019366,0.3484014,118170.0,118160.0,0.15241]
[1752915019558,0.90767889,118170.0,118160.0,0.03835]
[1752915019755,0.90767889,118170.0,118160.0,0.2075057]
[1752915020162,0.90767889,118170.0,118160.0,0.2345157]
[1752915020366,0.90767889,118170.0,118160.0,0.2855257]
[1752915020564,0.92471559,118170.0,118160.0,0.3215657]
[1752915020964,0.92471559,118170.0,118160.0,0.3225657]
[1752915021368,0.92471559,118170.0,118160.0,0.3235657]
[1752915021566,0.92471559,118170.0,118160.0,0.3315057]
[1752915022168,0.92471559,118170.0,118160.0,0.3469557]
[1752915022559,0.1962967,118170.0,118160.0,0.54543319]
[1752915022760,0.1580367,118170.0,118160.0,0.54543319]
[1752915024070,0.1580367,118170.0,118160.0,0.3469557]
[1752915024270,0.1580367,118170.0,118160.0,0.54543319]
[1752915025263,0.1580367,118170.0,118160.0,0.3469557]
[1752915025264,0.1962967,118170.0,118160.0,0.3469557]
[1752915027869,0.1310167,118170.0,118160.0,0.54543319]
[1752915028576,0.1580367,118170.0,118160.0,0.54543319]
[1752915028875,0.1580367,118170.0,118160.0,0.3469557]
[1752915029079,0.1580367,118170.0,118160.0,0.54543319]
[1752915029579,0.365438,118170.0,118160.0,0.3469557]
[1752915031178,0.726238,118170.0,118160.0,0.3469557]
[1752915032581,0.726238,118170.0,118160.0,0.9329557]
[1752915035880,0.5570967,118170.0,118160.0,0.9329557]
[1752915036486,0.726238,118170.0,118160.0,0.9329557]
[1752915036786,0.92471549,118170.0,118160.0,0.3469557]
[1752915037484,0.726238,118170.0,118160.0,0.3469557]
[1752915037684,0.92471549,118170.0,118160.0,0.3469557]
[1752915039287,0.98520798,118170.0,118160.0,0.3469557]
[1752915041291,0.92471549,118170.0,118160.0,0.3469557]
[1752915041787,1.50975549,118170.0,118160.0,0.3469557]
[1752915042400,1.58577839,118170.0,118160.0,0.33306568]
[1752915042686,1.00073839,118170.0,118160.0,0.33306568]
[1752915042886,0.8022609,118170.0,118160.0,0.33306568]
[1752915044393,0.86278176,118170.0,118160.0,0.33306568]
[1752915044595,0.78675886,118170.0,118160.0,0.33306568]
[1752915046294,0.78675886,118170.0,118160.0,0.3055502]
[1752915047293,0.726238,118170.0,118160.0,0.3055502]
[1752915048397,0.8022609,118170.0,118160.0,0.3449102]
[1752915048897,0.6331196,118170.0,118160.0,0.3449102]
[1752915049294,1.00073839,118170.0,118160.0,0.3449102]
[1752915049497,0.98542137,118170.0,118160.0,0.1711556]
[1752915050697,0.92471549,118170.0,118160.0,0.15726484]
[1752915051393,1.00073839,118170.0,118160.0,0.15726484]
[1752915052998,0.8022609,118170.0,118160.0,0.15726484]
[1752915053295,1.00073839,118170.0,118160.0,0.15726484]
[1752915055099,0.8022609,118170.0,118160.0,0.15726484]
[1752915055396,1.00073839,118170.0,118160.0,0.15726484]
[1752915057498,1.00073839,118170.0,118160.0,0.22412484]
[1752915057799,0.18916617,118170.0,118160.0,0.53600233]
[1752915057995,0.01749707,118170.0,118160.0,1.09527982]
[1752915058200,1e-08,118190.0,118180.0,0.1691268]
[1752915058499,0.12755391,118200.0,118190.0,0.2566625]
[1752915058696,0.12755391,118200.0,118190.0,1.2037025]
[1752915058697,0.19668391,118200.0,118190.0,1.2037025]
[1752915058893,0.19668391,118200.0,118190.0,1.2964125]
[1752915059097,0.19668391,118200.0,118190.0,0.7101725]
[1752915059295,0.5642597,118200.0,118190.0,0.7101725]
[1752915059496,0.9250597,118200.0,118190.0,0.2402425]
[1752915059698,0.9250597,118200.0,118190.0,0.1691125]
[1752915059990,1.5116197,118200.0,118190.0,0.1691125]
[1752915060191,1.5136197,118200.0,118190.0,0.1691125]
[1752915060799,1.31514221,118200.0,118190.0,0.1691125]
[1752915060998,1.5136197,118200.0,118190.0,0.1691125]
[1752915061401,1.5156197,118200.0,118190.0,0.1691125]
[1752915063002,1.5136197,118200.0,118190.0,0.1691125]
[1752915068107,1.5741504,118200.0,118190.0,0.1691125]
[1752915068312,0.2350768,118180.0,118170.0,0.18857005]
[1752915068610,1.50211429,118180.0,118170.0,0.26864935]
[1752915069201,1.50211429,118180.0,118170.0,0.31172935]
[1752915069606,1.8036368,118180.0,118170.0,0.40378935]
[1752915069814,1.8036368,118180.0,118170.0,0.40578935]
[1752915070315,1.8036368,118180.0,118170.0,0.40678935]
[1752915070913,1.86416124,118180.0,118170.0,0.40678935]
[1752915074618,1.87930987,118180.0,118170.0,0.40678935]
[1752915075119,1.87930987,118180.0,118170.0,0.41509935]
[1752915076415,2.07778736,118180.0,118170.0,0.2244134]
[1752915076615,2.09514097,118180.0,118170.0,0.2144134]
[1752915077619,1.89666348,118180.0,118170.0,0.2144134]
[1752915077918,2.09514097,118180.0,118170.0,0.2144134]
[1752915078118,2.09514097,118180.0,118170.0,0.2134134]
[1752915078916,2.45594097,118180.0,118170.0,0.2114134]
[1752915079116,2.45594097,118180.0,118170.0,0.2124134]
[1752915081525,2.3802679,118180.0,118170.0,0.2124134]
[1752915082720,2.3802679,118180.0,118170.0,0.1701411]
[1752915082924,2.3802679,118180.0,118160.0,0.31463275]
[1752915082925,0.2436211,118170.0,118160.0,0.31463275]
[1752915083125,0.99081508,118170.0,118160.0,0.39463275]
[1752915084030,0.99081508,118170.0,118160.0,0.39563275]
[1752915084826,0.91512859,118170.0,118160.0,0.31563275]
[1752915085030,1.41512859,118170.0,118160.0,0.31563275]
[1752915085631,1.41512859,118170.0,118160.0,0.31663275]
[1752915085932,1.41512859,118170.0,118160.0,0.27434495]
[1752915093629,1.4756897,118170.0,118160.0,0.27434495]
[1752915097437,1.4756897,118170.0,118160.0,0.1711448]
[1752915098642,1.27721221,118170.0,118160.0,0.1711448]
[1752915098936,1.4756897,118170.0,118160.0,0.1711448]
[1752915099136,1.39117602,118170.0,118150.0,0.253743]
[1752915099339,0.1971297,118150.0,118140.0,0.27272351]
[1752915099543,0.91238719,118150.0,118140.0,0.27272351]
[1752915100138,0.9729483,118150.0,118140.0,0.27272351]
[1752915101146,1.4729483,118150.0,118140.0,0.27272351]
[1752915101338,1.4729483,118150.0,118140.0,0.27572351]
[1752915101540,1.54009537,118150.0,118140.0,0.27572351]
[1752915102345,2.12805537,118150.0,118140.0,0.23642891]
[1752915106150,1.92957788,118150.0,118140.0,0.23642891]
[1752915106342,2.12805537,118150.0,118140.0,0.23642891]